[Event "FIDE WCCC Open-12 2024"]
[Site "Montesilvano"]
[Date "2024.11.19"]
[Round "5.28"]
[White "Platonovs, Nikolajs"]
[Black "Farzaleev, Daniyar"]
[Result "1/2-1/2"]
[ECO "B38"]
[WhiteElo "1969"]
[BlackElo "1622"]
[Annotator "RC"]
[PlyCount "113"]
[EventDate "2024.11.18"]
[EventType "swiss"]
[EventCountry "ITA"]
[SourceTitle "playchess.com"]
[Source "ChessBase"]
[SourceQuality "1"]
[TimeControl "5400+30"]

1. e4 {[%emt 0:00:02]} c5 {[%emt 0:00:03]} 2. Nf3 {[%emt 0:00:03]} Nc6 {[%emt 0:00:04]} 3. d4 {[%emt 0:00:05]} cxd4 {[%emt 0:00:03]} 4. Nxd4 {[%emt 0:00:06]} g6 {[%emt 0:00:02]} 5. c4 {[%emt 0:00:08]} Bg7 {[%emt 0:00:04]} 6. Be3 {[%emt 0:00:07]} Nf6 {[%emt 0:00:03]} 7. Nc3 {[%emt 0:00:11]} O-O {[%emt 0:00:06]} 8. Be2 {[%emt 0:00:33]} d6 {[%emt 0:00:04]} 9. O-O {[%emt 0:00:36]} Bd7 {[%emt 0:00:08]} 10. Qd2 {[%emt 0:00:35]} Nxd4 {[%emt 0:00:05]} 11. Bxd4 {[%emt 0:00:08]} Bc6 {[%emt 0:00:03]} 12. f3 {[%emt 0:00:11]} Nd7 {[%emt 0:00:06]} 13. Be3 {[%emt 0:00:13]} Nc5 {[%emt 0:01:46]} 14. Rac1 {[%emt 0:01:33]} Rc8 {[%emt 0:01:11]} 15. b4 {[%emt 0:03:38]} Na4 {[%emt 0:05:31]} 16. Nxa4 {[%emt 0:04:32]} Bxa4 {[%emt 0:00:01]} 17. b5 {[%emt 0:14:48]} a6 {[%emt 0:00:26]} 18. Qb4 {[%emt 0:00:47]} axb5 {[%emt 0:00:07]} 19. cxb5 {[%emt 0:01:47]} Ra8 {[%emt 0:00:26]} 20. Kh1 {[%emt 0:02:55]} Re8 {[%emt 0:08:19]} 21. Bc4 {[%emt 0:15:05]} e6 {[%emt 0:08:16]} 22. Bg1 {[%emt 0:10:56]} d5 {[%emt 0:00:26]} 23. exd5 {[%emt 0:00:27]} exd5 {[%emt 0:00:04]} 24. Bd3 {[%emt 0:01:00]} Bf8 {[%emt 0:19:34]} 25. Qb2 {[%emt 0:06:03]} Bg7 {[%emt 0:04:24]} 26. Bd4 {[%emt 0:00:39]} Bxd4 {[%emt 0:00:23]} 27. Qxd4 {[%emt 0:00:09]} Qa5 {[%emt 0:11:36]} 28. Rc5 {[%emt 0:08:31]} Re1 {[%emt 0:00:27]} 29. Rxd5 {[%emt 0:05:14]} Rxf1+ {[%emt 0:02:19]} 30. Bxf1 {[%emt 0:02:10]} Bc2 {[%emt 0:13:58]} 31. Qf2 {[%emt 0:02:57]} Qxa2 {[%emt 0:03:14]} 32. Rc5 {[%emt 0:05:14]} Bf5 {[%emt 0:01:18]} 33. Qxa2 {[%emt 0:00:36]} Rxa2 {[%emt 0:00:02]} 34. Kg1 {[%emt 0:00:28]} Rc2 {[%emt 0:00:55]} 35. Rd5 {[%emt 0:00:59]} Kf8 {[%emt 0:01:19]} 36. Rd8+ {[%emt 0:00:55]} Ke7 {[%emt 0:00:10]} 37. Rb8 {[%emt 0:00:05]} Bc8 {[%emt 0:00:33]} 38. Bd3 {[%emt 0:01:00]} Rc1+ {[%emt 0:00:40]} 39. Kf2 {[%emt 0:00:14]} Kd8 {[%emt 0:00:04]} 40. Ke3 {[%emt 0:02:49]} Kc7 {[%emt 0:00:31]} 41. Ra8 {[%emt 0:00:05]} Kb6 {[%emt 0:00:14]} 42. Kd4 {[%emt 0:02:06]} Rc5 {[%emt 0:02:51]} 43. g3 {[%emt 0:01:20]} Bd7 {[%emt 0:02:23]} 44. Rf8 {[%emt 0:03:16]} Bxb5 {[%emt 0:00:21]} 45. Bxb5 {[%emt 0:00:15]} Rxb5 {[%emt 0:00:08]} 46. Rxf7 {[%emt 0:00:15]} Rf5 {[%emt 0:03:30]} 47. Rxh7 {[%emt 0:04:41]} Rxf3 {[%emt 0:00:02]} 48. Rh6 {[%emt 0:00:16]} Rf6 {[%emt 0:00:05]} 49. h4 {[%emt 0:00:37]} Rd6+ {[%emt 0:01:08]} 50. Ke5 {[%emt 0:00:07]} Kc5 {[%emt 0:00:04]} 51. g4 {[%emt 0:00:47]} b5 {[%emt 0:00:25]} 52. Rh8 {[%emt 0:00:58]} b4 {[%emt 0:01:37]} 53. Rb8 {[%emt 0:01:07]} Rc6 {[%emt 0:01:30]} 54. h5 {[%emt 0:02:04]} gxh5 {[%emt 0:00:16]} 55. gxh5 {[%emt 0:00:10]} Rh6 {[%emt 0:01:05]} 56. Ke4 {[%emt 0:00:13]} Kc4 {[%emt 0:01:21]} 57. Rc8+ {[%emt 0:00:08]} 1/2-1/2

[Event "FIDE WCCC Open-12 2024"]
[Site "Montesilvano"]
[Date "2024.11.19"]
[Round "5.29"]
[White "Guo, Ethan"]
[Black "Petrovski, Nikola"]
[Result "1-0"]
[ECO "C54"]
[WhiteElo "2157"]
[BlackElo "1829"]
[Annotator "RC"]
[PlyCount "99"]
[EventDate "2024.11.18"]
[EventType "swiss"]
[EventCountry "ITA"]
[SourceTitle "playchess.com"]
[Source "ChessBase"]
[SourceQuality "1"]
[TimeControl "5400+30"]

1. e4 {[%emt 0:00:01]} e5 {[%emt 0:01:00]} 2. Nf3 {[%emt 0:00:05]} Nc6 {[%emt 0:00:04]} 3. Bc4 {[%emt 0:00:05]} Bc5 {[%emt 0:00:25]} 4. O-O {[%emt 0:00:11]} Nf6 {[%emt 0:00:08]} 5. d3 {[%emt 0:00:05]} d6 {[%emt 0:00:10]} 6. c3 {[%emt 0:00:06]} h6 {[%emt 0:00:09]} 7. Re1 {[%emt 0:00:39]} O-O {[%emt 0:00:09]} 8. h3 {[%emt 0:00:10]} Ne7 {[%emt 0:00:59]} 9. a4 {[%emt 0:01:20]} a6 {[%emt 0:00:14]} 10. Nbd2 {[%emt 0:00:44]} Ng6 {[%emt 0:00:30]} 11. Nf1 {[%emt 0:00:30]} Re8 {[%emt 0:00:30]} 12. Ng3 {[%emt 0:00:30]} Be6 {[%emt 0:00:30]} 13. Bxe6 {[%emt 0:00:30]} Rxe6 {[%emt 1:32:12]} 14. b4 {[%emt 0:07:11]} Ba7 {[%emt 0:00:00]} 15. c4 {[%emt 0:00:37]} c6 {[%emt 0:00:00]} 16. Qc2 {[%emt 0:05:23]} Qc7 {[%emt 0:00:00]} 17. Nf5 {[%emt 0:07:33]} Nh5 {[%emt 0:00:00]} 18. g3 {[%emt 0:04:40]} Rf6 {[%emt 0:00:00]} 19. Kg2 Re6 {[%emt 0:00:00]} 20. Bd2 {[%emt 0:01:00]} Rc8 {[%emt 0:00:00]} 21. Qd1 {[%emt 0:00:30]} Nf6 {[%emt 0:00:00]} 22. Qb3 {[%emt 0:00:30]} Qd7 {[%emt 0:00:00]} 23. Rac1 {[%emt 0:00:30]} Kh7 {[%emt 0:00:00]} 24. g4 {[%emt 0:00:30]} Kh8 {[%emt 0:00:00]} 25. Re2 {[%emt 0:00:30]} Rd8 {[%emt 0:00:00]} 26. Qb2 {[%emt 0:00:30]} Rc8 {[%emt 0:00:00]} 27. Rce1 {[%emt 0:00:30]} Rce8 {[%emt 0:00:00]} 28. Kh2 {[%emt 0:00:30]} Nh7 {[%emt 0:00:00]} 29. Kg2 {[%emt 0:00:30]} Nf6 {[%emt 0:00:00]} 30. Qc1 {[%emt 0:00:30]} Nh7 {[%emt 0:00:00]} 31. h4 {[%emt 0:00:30]} d5 {[%emt 0:00:00]} 32. h5 {[%emt 0:00:30]} dxe4 {[%emt 0:00:00]} 33. dxe4 {[%emt 0:00:30]} Ne7 {[%emt 0:00:00]} 34. Bc3 {[%emt 0:00:30]} Nxf5 {[%emt 0:00:00]} 35. exf5 {[%emt 0:00:30]} e4 {[%emt 0:00:00]} 36. Nh4 {[%emt 0:00:30]} R6e7 {[%emt 0:00:00]} 37. Qxh6 {[%emt 0:00:30]} Bd4 {[%emt 0:00:00]} 38. Qd2 {[%emt 0:00:30]} Bf6 {[%emt 0:00:00]} 39. Qxd7 {[%emt 0:00:30]} Rxd7 {[%emt 0:00:00]} 40. Rxe4 {[%emt 0:00:30]} Rxe4 {[%emt 0:00:00]} 41. Rxe4 {[%emt 0:00:30]} Bxc3 {[%emt 0:00:00]} 42. Re8+ {[%emt 0:00:30]} Nf8 {[%emt 0:00:00]} 43. Rxf8+ {[%emt 0:00:30]} Kh7 {[%emt 0:00:00]} 44. Ng6 {[%emt 0:00:30]} fxg6 {[%emt 0:00:00]} 45. fxg6+ {[%emt 0:00:30]} Kh6 {[%emt 0:00:00]} 46. f4 {[%emt 0:00:30]} Rd2+ {[%emt 0:00:00]} 47. Kf3 {[%emt 0:00:30]} Rd3+ {[%emt 0:00:00]} 48. Ke2 {[%emt 0:00:30]} Rd2+ {[%emt 0:00:00]} 49. Ke3 {[%emt 0:00:30]} Bxb4 {[%emt 0:00:00]} 50. Rh8# {[%emt 0:00:30]} 1-0

[Event "FIDE WCCC Open-12 2024"]
[Site "Montesilvano"]
[Date "2024.11.19"]
[Round "5.30"]
[White "Belin, Anton"]
[Black "Kozhedub, Ivan"]
[Result "1-0"]
[ECO "B27"]
[WhiteElo "2138"]
[BlackElo "1826"]
[Annotator "RC"]
[PlyCount "108"]
[EventDate "2024.11.18"]
[EventType "swiss"]
[EventCountry "ITA"]
[SourceTitle "playchess.com"]
[Source "ChessBase"]
[SourceQuality "1"]
[TimeControl "5400+30"]

1. e4 {[%emt 0:00:03]} c5 {[%emt 0:00:12]} 2. Nf3 {[%emt 0:00:26]} g6 {[%emt 0:00:15]} 3. d4 {[%emt 0:00:43]} cxd4 {[%emt 0:00:20]} 4. Qxd4 {[%emt 0:00:58]} Nf6 {[%emt 0:00:11]} 5. e5 {[%emt 0:00:52]} Nc6 {[%emt 0:00:15]} 6. Qa4 {[%emt 0:00:49]} Nd5 {[%emt 0:00:24]} 7. Qb3 {[%emt 0:00:52]} Nc7 {[%emt 0:00:16]} 8. Ng5 {[%emt 0:01:12]} Ne6 {[%emt 0:00:17]} 9. Nxe6 {[%emt 0:01:02]} fxe6 {[%emt 0:01:36]} 10. f4 {[%emt 0:02:41]} d6 {[%emt 0:03:31]} 11. exd6 {[%emt 0:08:10]} exd6 {[%emt 0:00:51]} 12. Nc3 {[%emt 0:00:27]} Bg7 {[%emt 0:07:10]} 13. Be3 {[%emt 0:01:29]} O-O {[%emt 0:03:41]} 14. O-O-O {[%emt 0:01:12]} Qe7 {[%emt 0:00:19]} 15. h4 {[%emt 0:01:45]} d5 {[%emt 0:04:00]} 16. Ne2 {[%emt 0:03:11]} Bd7 {[%emt 0:15:21]} 17. h5 {[%emt 0:02:09]} Be8 {[%emt 0:00:09]} 18. g4 {[%emt 0:02:03]} a6 {[%emt 0:12:33]} 19. Ng3 {[%emt 0:03:39]} Na5 {[%emt 0:03:54]} 20. Qb6 {[%emt 0:01:00]} Nc6 {[%emt 0:07:17]} 21. Bc5 {[%emt 0:01:16]} Qf6 {[%emt 0:00:18]} 22. Bxf8 {[%emt 0:00:24]} Qxf4+ {[%emt 0:00:36]} 23. Kb1 {[%emt 0:00:06]} Kxf8 {[%emt 0:00:47]} 24. hxg6 {[%emt 0:02:40]} Bxg6 {[%emt 0:03:04]} 25. Bd3 {[%emt 0:03:49]} Bxd3 {[%emt 0:10:57]} 26. Rxd3 {[%emt 0:00:02]} Kg8 {[%emt 0:05:35]} 27. Nh5 {[%emt 0:03:05]} Qe4 {[%emt 0:01:14]} 28. Rf1 {[%emt 0:00:46]} Rf8 {[%emt 0:02:05]} 29. Rxf8+ {[%emt 0:01:04]} Kxf8 {[%emt 0:00:04]} 30. a3 {[%emt 0:02:05]} Qxg4 {[%emt 0:06:12]} 31. Qf2+ {[%emt 0:05:12]} Ke7 {[%emt 0:02:10]} 32. Qc5+ {[%emt 0:09:26]} Kd7 {[%emt 0:02:32]} 33. Rb3 {[%emt 0:08:13]} Nd8 {[%emt 0:01:50]} 34. Nxg7 {[%emt 0:08:27]} Qxg7 {[%emt 0:00:05]} 35. c4 {[%emt 0:00:32]} Qg6+ {[%emt 0:04:04]} 36. Ka2 {[%emt 0:00:08]} Qc2 {[%emt 0:00:07]} 37. Rc3 {[%emt 0:00:28]} Qe4 {[%emt 0:00:50]} 38. cxd5 {[%emt 0:01:01]} Qxd5+ {[%emt 0:00:05]} 39. Qxd5+ {[%emt 0:00:12]} exd5 {[%emt 0:00:03]} 40. Rh3 {[%emt 0:00:08]} Kd6 {[%emt 0:02:47]} 41. Rxh7 {[%emt 0:00:10]} b6 {[%emt 0:00:44]} 42. Kb3 {[%emt 0:00:27]} Kc5 {[%emt 0:00:44]} 43. Kc3 {[%emt 0:00:46]} a5 {[%emt 0:01:31]} 44. Rh4 {[%emt 0:05:37]} Nc6 {[%emt 0:01:02]} 45. b4+ {[%emt 0:00:21]} axb4+ {[%emt 0:00:15]} 46. axb4+ {[%emt 0:00:05]} Kb5 {[%emt 0:00:33]} 47. Kb3 {[%emt 0:00:21]} Ne7 {[%emt 0:00:40]} 48. Rh5 {[%emt 0:00:42]} Kc6 {[%emt 0:00:32]} 49. Kc3 {[%emt 0:00:41]} Nc8 {[%emt 0:00:30]} 50. Kd4 {[%emt 0:03:06]} Nd6 {[%emt 0:00:30]} 51. Rh6 {[%emt 0:00:24]} Kc7 {[%emt 0:00:31]} 52. Kxd5 {[%emt 0:00:10]} Nb5 {[%emt 0:00:30]} 53. Rh7+ {[%emt 0:00:08]} Kc8 {[%emt 0:00:06]} 54. Kc6 {[%emt 0:20:45]} Nc3 {[%emt 0:00:01]} 1-0

[Event "FIDE WCCC Open-12 2024"]
[Site "Montesilvano"]
[Date "2024.11.19"]
[Round "5.31"]
[White "Obidov, Biloliddin"]
[Black "Lee, Tsuen Jin Aiesec"]
[Result "1-0"]
[ECO "C01"]
[WhiteElo "2088"]
[BlackElo "1806"]
[Annotator "RC"]
[PlyCount "105"]
[EventDate "2024.11.18"]
[EventType "swiss"]
[EventCountry "ITA"]
[SourceTitle "playchess.com"]
[Source "ChessBase"]
[SourceQuality "1"]
[TimeControl "5400+30"]

1. d4 {[%emt 0:00:01]} e6 {[%emt 0:00:02]} 2. c4 {[%emt 0:00:08]} b6 {[%emt 0:00:02]} 3. e4 {[%emt 0:01:30]} Bb4+ {[%emt 0:00:06]} 4. Bd2 {[%emt 0:00:19]} Bxd2+ {[%emt 0:00:37]} 5. Nxd2 {[%emt 0:00:02]} d5 {[%emt 0:00:06]} 6. Ngf3 {[%emt 0:01:09]} Bb7 {[%emt 0:01:35]} 7. cxd5 {[%emt 0:00:07]} exd5 {[%emt 0:00:04]} 8. e5 {[%emt 0:00:06]} Ne7 {[%emt 0:01:29]} 9. Bd3 {[%emt 0:00:15]} c5 {[%emt 0:00:54]} 10. Rc1 {[%emt 0:00:22]} Nd7 {[%emt 0:00:32]} 11. O-O {[%emt 0:00:19]} h6 {[%emt 0:01:27]} 12. Re1 {[%emt 0:01:24]} O-O {[%emt 0:01:45]} 13. Bb1 {[%emt 0:00:04]} Rc8 {[%emt 0:03:29]} 14. Nf1 {[%emt 0:01:02]} Re8 {[%emt 0:02:09]} 15. Ng3 {[%emt 0:01:09]} Nf8 {[%emt 0:00:27]} 16. Nh4 {[%emt 0:01:08]} cxd4 {[%emt 0:08:27]} 17. Nhf5 {[%emt 0:04:16]} Nxf5 {[%emt 0:01:54]} 18. Nxf5 {[%emt 0:00:06]} Rc5 {[%emt 0:19:38]} 19. Qxd4 {[%emt 0:06:00]} Ne6 {[%emt 0:16:29]} 20. Qd3 {[%emt 0:12:45]} Rxc1 {[%emt 0:07:52]} 21. Rxc1 {[%emt 0:00:37]} Qg5 {[%emt 0:00:40]} 22. Re1 {[%emt 0:06:02]} Nf4 {[%emt 0:02:55]} 23. Qf3 {[%emt 0:03:27]} Ng6 {[%emt 0:10:10]} 24. Nd6 {[%emt 0:09:42]} Re7 {[%emt 0:00:06]} 25. Bxg6 {[%emt 0:01:55]} fxg6 {[%emt 0:08:52]} 26. Nxb7 {[%emt 0:00:24]} Rxb7 {[%emt 0:02:27]} 27. Qxd5+ {[%emt 0:49:41]} Rf7 {[%emt 0:00:11]} 28. g3 {[%emt 0:00:00]} Qf5 {[%emt 0:00:43]} 29. Re2 {[%emt 0:00:00]} Kh7 {[%emt 0:00:47]} 30. Kg2 {[%emt 0:00:00]} h5 {[%emt 0:00:58]} 31. Qe4 {[%emt 0:00:00]} Qe6 {[%emt 0:04:40]} 32. b3 {[%emt 0:00:00]} Rc7 {[%emt 0:00:42]} 33. Rd2 {[%emt 0:00:00]} Rc5 {[%emt 0:01:23]} 34. Rd6 {[%emt 0:00:00]} Qf5 {[%emt 0:02:26]} 35. Qxf5 {[%emt 0:00:00]} gxf5 {[%emt 0:00:03]} 36. e6 {[%emt 0:00:00]} Re5 {[%emt 0:00:10]} 37. Kf3 {[%emt 0:00:00]} Kg6 {[%emt 0:00:54]} 38. Rd7 {[%emt 0:00:00]} Rxe6 {[%emt 0:00:36]} 39. Rxa7 {[%emt 0:00:00]} Kf6 {[%emt 0:00:09]} 40. h4 {[%emt 0:00:00]} g6 {[%emt 0:00:33]} 41. a4 {[%emt 0:00:00]} Rc6 {[%emt 0:00:32]} 42. b4 {[%emt 0:00:00]} Rc4 {[%emt 0:00:36]} 43. b5 {[%emt 0:00:00]} Rb4 {[%emt 0:00:34]} 44. Ra6 {[%emt 0:00:00]} Kg7 {[%emt 0:00:03]} 45. Ke3 {[%emt 0:00:00]} Re4+ {[%emt 0:02:01]} 46. Kd3 {[%emt 0:00:00]} Kf7 {[%emt 0:00:15]} 47. f3 {[%emt 0:00:00]} Re6 {[%emt 0:00:03]} 48. Kc4 {[%emt 0:00:00]} Ke7 {[%emt 0:00:11]} 49. a5 {[%emt 0:00:00]} Re1 {[%emt 0:00:39]} 50. Rxb6 {[%emt 0:00:00]} Rc1+ {[%emt 0:00:13]} 51. Kd5 {[%emt 0:00:00]} Rd1+ {[%emt 0:00:04]} 52. Kc6 {[%emt 0:00:00]} Rc1+ {[%emt 0:00:44]} 53. Kb7 {[%emt 0:00:00]} 1-0

[Event "FIDE WCCC Open-12 2024"]
[Site "Montesilvano"]
[Date "2024.11.19"]
[Round "5.32"]
[White "Nicot, Valentin"]
[Black "Liu, Richard Jingjie"]
[Result "1/2-1/2"]
[ECO "C45"]
[WhiteElo "2078"]
[BlackElo "1795"]
[Annotator "RC"]
[PlyCount "79"]
[EventDate "2024.11.18"]
[EventType "swiss"]
[EventCountry "ITA"]
[SourceTitle "playchess.com"]
[Source "ChessBase"]
[SourceQuality "1"]
[TimeControl "5400+30"]

1. e4 {[%emt 0:00:08]} e5 {[%emt 0:00:04]} 2. Nf3 {[%emt 0:00:17]} Nc6 {[%emt 0:00:01]} 3. d4 {[%emt 0:00:20]} exd4 {[%emt 0:00:02]} 4. Nxd4 {[%emt 0:00:08]} Qh4 {[%emt 0:01:50]} 5. Nc3 {[%emt 0:01:34]} Bb4 {[%emt 0:00:06]} 6. Be2 {[%emt 0:00:48]} Bxc3+ {[%emt 0:08:02]} 7. bxc3 {[%emt 0:00:08]} Nxd4 {[%emt 0:04:03]} 8. cxd4 {[%emt 0:00:26]} Qxe4 {[%emt 0:12:50]} 9. O-O {[%emt 0:00:33]} Ne7 {[%emt 0:00:24]} 10. Bg5 {[%emt 0:12:01]} Qg6 {[%emt 0:13:43]} 11. f4 {[%emt 0:07:57]} h6 {[%emt 0:05:15]} 12. Bh4 {[%emt 0:05:35]} Qd6 {[%emt 0:15:46]} 13. f5 {[%emt 0:06:40]} Nd5 {[%emt 0:01:49]} 14. Bg3 {[%emt 0:02:29]} Nc3 {[%emt 0:05:18]} 15. Bxd6 {[%emt 0:06:39]} Nxd1 {[%emt 0:00:13]} 16. Be5 {[%emt 0:12:02]} Ne3 {[%emt 0:00:48]} 17. Rf3 {[%emt 0:00:56]} Nxc2 {[%emt 0:08:30]} 18. Rc1 {[%emt 0:06:51]} f6 {[%emt 0:02:25]} 19. Bxc7 {[%emt 0:00:26]} Nxd4 {[%emt 0:04:40]} 20. Re3+ {[%emt 0:00:06]} Ne6 {[%emt 0:00:21]} 21. fxe6 {[%emt 0:05:40]} dxe6 {[%emt 0:00:01]} 22. Bg3 {[%emt 0:00:21]} Bd7 {[%emt 0:03:22]} 23. Bf3 {[%emt 0:01:57]} Rc8 {[%emt 0:01:00]} 24. Rxc8+ {[%emt 0:00:58]} Bxc8 {[%emt 0:00:06]} 25. Rc3 {[%emt 0:00:00]} O-O {[%emt 0:01:04]} 26. Rc7 {[%emt 0:00:20]} e5 {[%emt 0:00:41]} 27. Bxb7 {[%emt 0:06:43]} Bxb7 {[%emt 0:00:01]} 28. Rxb7 {[%emt 0:00:09]} Rf7 {[%emt 0:00:30]} 29. Rxf7 {[%emt 0:11:49]} Kxf7 {[%emt 0:00:01]} 30. Kf2 {[%emt 0:00:09]} Ke6 {[%emt 0:00:03]} 31. Ke3 {[%emt 0:00:04]} f5 {[%emt 0:00:21]} 32. Kd3 {[%emt 0:00:29]} Kd5 {[%emt 0:00:14]} 33. Bf2 {[%emt 0:00:06]} a6 {[%emt 0:00:25]} 34. h4 {[%emt 0:01:41]} g6 {[%emt 0:01:25]} 35. Be1 {[%emt 0:03:40]} f4 {[%emt 0:00:24]} 36. Bc3 {[%emt 0:01:30]} e4+ {[%emt 0:00:25]} 37. Ke2 {[%emt 0:00:01]} Ke6 {[%emt 0:00:17]} 38. Bg7 {[%emt 0:01:04]} h5 {[%emt 0:02:03]} 39. Bh6 {[%emt 0:00:03]} Kf5 {[%emt 0:00:19]} 40. Kf2 {[%emt 0:02:54]} 1/2-1/2

[Event "FIDE WCCC Open-12 2024"]
[Site "Montesilvano"]
[Date "2024.11.19"]
[Round "5.33"]
[White "Simiyu Jadon"]
[Black "Minga-Nagy, Abel Inti"]
[Result "0-1"]
[ECO "A02"]
[WhiteElo "1784"]
[BlackElo "2033"]
[Annotator "RC"]
[PlyCount "50"]
[EventDate "2024.11.18"]
[EventType "swiss"]
[EventCountry "ITA"]
[SourceTitle "playchess.com"]
[Source "ChessBase"]
[SourceQuality "1"]
[TimeControl "5400+30"]

1. f4 {[%emt 0:00:21]} e5 {[%emt 0:01:08]} 2. d3 {[%emt 0:01:01]} d6 {[%emt 0:00:41]} 3. Nf3 {[%emt 0:00:56]} Nc6 {[%emt 0:00:56]} 4. e3 {[%emt 0:01:10]} Bg4 {[%emt 0:01:50]} 5. Be2 {[%emt 0:01:10]} Bxf3 {[%emt 0:06:28]} 6. Bxf3 {[%emt 0:00:14]} exf4 {[%emt 0:00:04]} 7. exf4 {[%emt 0:01:22]} Qe7+ {[%emt 0:00:11]} 8. Kf2 {[%emt 0:00:08]} Qd7 {[%emt 0:02:25]} 9. c4 {[%emt 0:03:27]} Nf6 {[%emt 0:04:52]} 10. Nc3 {[%emt 0:01:34]} Be7 {[%emt 0:01:28]} 11. Be3 {[%emt 0:05:25]} O-O {[%emt 0:01:55]} 12. g4 {[%emt 0:02:52]} d5 {[%emt 0:05:13]} 13. Nxd5 {[%emt 0:05:01]} Nxd5 {[%emt 0:00:07]} 14. cxd5 {[%emt 0:00:13]} Bh4+ {[%emt 0:00:14]} 15. Kg2 {[%emt 0:00:58]} Ne7 {[%emt 0:00:36]} 16. Qb3 {[%emt 0:00:37]} Rad8 {[%emt 0:04:15]} 17. Bc5 {[%emt 0:02:01]} Rfe8 {[%emt 0:02:50]} 18. Bxe7 {[%emt 1:11:00]} Qxe7 {[%emt 0:01:32]} 19. Be4 {[%emt 0:00:00]} Qc5 {[%emt 0:07:51]} 20. Rhf1 {[%emt 0:00:00]} Rd6 {[%emt 0:09:53]} 21. Kf3 {[%emt 0:00:00]} h5 {[%emt 0:05:33]} 22. h3 {[%emt 0:00:00]} Rf6 {[%emt 0:04:20]} 23. gxh5 {[%emt 0:00:00]} Qd6 {[%emt 0:01:18]} 24. Kg4 {[%emt 0:00:00]} g5 {[%emt 0:03:07]} 25. hxg6 {[%emt 0:00:00]} Rxe4 {[%emt 0:04:58]} 0-1

[Event "FIDE WCCC Open-12 2024"]
[Site "Montesilvano"]
[Date "2024.11.19"]
[Round "5.34"]
[White "Lee, Daniel Joshua"]
[Black "Vaidyanathan, Adithya"]
[Result "1-0"]
[ECO "B38"]
[WhiteElo "1765"]
[BlackElo "2018"]
[Annotator "RC"]
[PlyCount "89"]
[EventDate "2024.11.18"]
[EventType "swiss"]
[EventCountry "ITA"]
[SourceTitle "playchess.com"]
[Source "ChessBase"]
[SourceQuality "1"]
[TimeControl "5400+30"]

1. e4 {[%emt 0:00:02]} c5 {[%emt 0:00:01]} 2. Nf3 {[%emt 0:00:08]} Nc6 {[%emt 0:00:01]} 3. d4 {[%emt 0:00:07]} cxd4 {[%emt 0:00:01]} 4. Nxd4 {[%emt 0:00:11]} g6 {[%emt 0:00:02]} 5. c4 {[%emt 0:00:13]} Bg7 {[%emt 0:00:03]} 6. Be3 {[%emt 0:00:07]} Nf6 {[%emt 0:00:03]} 7. Nc3 {[%emt 0:00:07]} O-O {[%emt 0:00:03]} 8. Be2 {[%emt 0:00:05]} d6 {[%emt 0:00:03]} 9. O-O {[%emt 0:00:06]} Bd7 {[%emt 0:00:01]} 10. Nc2 {[%emt 0:00:36]} Qa5 {[%emt 0:00:16]} 11. Qd2 {[%emt 0:01:14]} Rfc8 {[%emt 0:00:22]} 12. Rac1 {[%emt 0:04:57]} Be6 {[%emt 0:05:13]} 13. b4 {[%emt 0:06:51]} Qd8 {[%emt 0:13:13]} 14. f4 {[%emt 0:02:06]} Ng4 {[%emt 0:03:26]} 15. Bxg4 {[%emt 0:03:38]} Bxg4 {[%emt 0:00:02]} 16. Nd5 {[%emt 0:11:46]} Be6 {[%emt 0:16:27]} 17. Nd4 {[%emt 0:18:49]} Qd7 {[%emt 0:05:23]} 18. Rf3 {[%emt 0:19:41]} Bxd5 {[%emt 0:18:48]} 19. exd5 {[%emt 0:00:45]} Nb8 {[%emt 0:00:47]} 20. f5 {[%emt 0:10:11]} Qe8 {[%emt 0:06:42]} 21. Bh6 {[%emt 0:05:25]} Qf8 {[%emt 0:02:20]} 22. Bxg7 {[%emt 0:04:02]} Qxg7 {[%emt 0:00:02]} 23. fxg6 {[%emt 0:00:17]} hxg6 {[%emt 0:00:11]} 24. Nf5 {[%emt 0:00:16]} gxf5 {[%emt 0:05:20]} 25. Rg3 {[%emt 0:00:11]} Qxg3 {[%emt 0:00:52]} 26. hxg3 {[%emt 0:00:06]} Nd7 {[%emt 0:01:06]} 27. Rf1 {[%emt 0:06:24]} Ne5 {[%emt 0:01:40]} 28. Rxf5 {[%emt 0:01:16]} Rxc4 {[%emt 0:01:06]} 29. Qh6 {[%emt 0:02:06]} Rac8 {[%emt 0:00:35]} 30. Rg5+ {[%emt 0:01:11]} Ng6 {[%emt 0:00:01]} 31. Kh2 {[%emt 0:01:19]} Rc1 {[%emt 0:00:41]} 32. Rh5 {[%emt 0:01:04]} Rf1 {[%emt 0:00:23]} 33. g4 {[%emt 0:00:51]} Rcc1 {[%emt 0:00:22]} 34. Qh7+ {[%emt 0:00:31]} Kf8 {[%emt 0:00:01]} 35. Kg3 {[%emt 0:00:38]} Rc3+ {[%emt 0:00:39]} 36. Kh2 {[%emt 0:00:04]} Rcc1 {[%emt 0:00:14]} 37. Qh6+ {[%emt 0:00:50]} Ke8 {[%emt 0:01:07]} 38. Qe3 {[%emt 0:00:22]} Ne5 {[%emt 0:00:44]} 39. Rg5 {[%emt 0:00:51]} Rh1+ {[%emt 0:01:13]} 40. Kg3 {[%emt 0:00:10]} Rcd1 {[%emt 0:00:05]} 41. Qxa7 {[%emt 0:00:52]} Rd3+ {[%emt 0:03:06]} 42. Kf2 {[%emt 0:00:05]} Rc1 {[%emt 0:00:12]} 43. Qb8+ {[%emt 0:00:30]} Kd7 {[%emt 0:00:03]} 44. Qxb7+ {[%emt 0:00:23]} Rc7 {[%emt 0:00:37]} 45. Qb5+ {[%emt 0:00:09]} 1-0